bitfinex/quotes_ETHUSD_20220101
["timestamp","ask_amount","ask_price","bid_price","bid_amount"]
[1641073698637,1.33146,3757.4,3757.0,1.15596831]
[1641073698838,0.383,3757.3,3757.1,0.00397896]
[1641073699036,0.4926,3757.3,3757.1,6.15397896]
[1641073699238,14.0,3757.9,3757.1,6.1]
[1641073699436,0.2926,3758.0,3757.2,0.00341054]
[1641073699638,0.66547,3757.7,3757.2,0.00341054]
[1641073700035,1.62356,3758.0,3757.2,1.28743213]
[1641073700036,0.2926,3758.0,3757.2,1.28743213]
[1641073700239,0.2701,3757.9,3757.2,1.28402159]
[1641073700438,0.2701,3757.9,3757.3,0.00284212]
[1641073700887,1.4822754,3757.9,3757.3,0.00284212]
[1641073701499,1.4822754,3757.9,3757.0,0.00454739]
[1641073701800,4.25793106,3757.9,3756.9,0.00511581]
[1641073701996,0.2701,3757.7,3756.9,0.00511581]
[1641073702197,0.2701,3757.2,3756.9,0.00511581]
[1641073703398,0.93566,3757.2,3756.9,0.00511581]
[1641073705730,0.2701,3757.2,3756.9,0.00511581]
[1641073708709,0.93567,3757.2,3756.9,0.00511581]
[1641073709309,1.23567,3757.2,3756.9,0.00511581]
[1641073709512,0.3709,3757.1,3756.9,0.00511581]
[1641073709717,0.3701,3757.1,3756.9,0.00511581]
[1641073709913,9.9701,3757.0,3756.9,0.00511581]
[1641073710114,10.8701,3757.0,3756.9,0.00511581]
[1641073710516,9.8701,3756.9,3756.8,1.4017451]
[1641073710717,10.8701,3756.9,3756.8,1.4017451]
[1641073710918,11.53591,3756.9,3756.8,1.4017451]
[1641073711118,0.2701,3756.7,3756.0,0.00995888]
[1641073711320,0.2701,3756.7,3755.4,3.7374]
[1641073711520,0.2701,3756.3,3756.1,0.00454739]
[1641073711940,8.88586,3756.2,3756.1,0.00454739]
[1641073712244,8.5701,3756.1,3756.0,0.01450671]
[1641073712446,4.2201,3756.1,3756.0,0.01450671]
[1641073712647,5.21760127,3756.1,3756.0,0.01450671]
[1641073713345,0.2701,3755.4,3755.0,0.04786032]
[1641073713547,0.2701,3755.4,3755.0,0.03350223]
[1641073713746,0.2701,3755.8,3755.1,0.00568423]
[1641073714345,22.98174771,3755.8,3755.1,0.00568423]
[1641073714848,0.2701,3755.6,3755.1,0.00568423]
[1641073715585,0.2701,3755.6,3755.1,0.00789625]
[1641073716085,0.2701,3755.6,3755.2,0.00511581]
[1641073717089,0.2701,3755.4,3755.2,0.00511581]
[1641073721636,0.2701,3755.3,3755.2,0.00511581]
[1641073724388,3.0201,3755.3,3755.2,0.00511581]
[1641073725389,5.4701,3755.3,3754.8,0.25732783]
[1641073725587,5.4701,3755.3,3754.5,0.3]
[1641073725788,5.4701,3755.3,3754.9,0.00170527]
[1641073725988,1.39741448,3755.0,3754.9,0.00170527]
[1641073726839,1.39741448,3755.0,3754.7,0.00284212]
[1641073727641,1.39741448,3755.0,3754.7,0.30284212]
[1641073727843,1.39741448,3755.0,3754.7,0.3]
[1641073728042,1.39741448,3755.0,3754.8,0.00227369]
[1641073728341,1.39741448,3755.0,3754.5,0.30397896]
[1641073728542,1.39741448,3755.0,3754.5,0.00397896]
[1641073728744,1.39741448,3755.0,3754.6,0.00341054]
[1641073728943,1.39741448,3755.0,3754.5,0.00397896]
[1641073729144,1.39741448,3755.0,3754.5,0.30397896]
[1641073729547,0.2701,3754.8,3754.6,0.00341054]
[1641073729947,0.2701,3754.8,3754.3,0.00511581]
[1641073730145,0.2701,3754.8,3754.0,0.00682108]
[1641073730351,0.2701,3754.8,3753.9,3.0254]
[1641073730352,0.2701,3754.6,3753.8,1.50418108]
[1641073730579,0.2701,3754.3,3753.8,1.50418108]
[1641073730781,0.2701,3754.3,3753.9,0.3]
[1641073730980,0.00113685,3754.2,3753.9,0.3]
[1641073731387,0.00113685,3754.2,3754.1,0.66595]
[1641073731583,0.00113685,3754.2,3754.1,0.3]
[1641073731985,0.00113685,3754.2,3754.0,0.3]
[1641073732185,0.00113685,3754.2,3753.9,0.3]
[1641073733387,0.00113685,3754.2,3753.9,0.96593]
[1641073733589,0.00113685,3754.2,3753.4,3.8329]
[1641073733590,0.2701,3754.0,3753.4,3.8329]
[1641073733889,0.2701,3754.0,3753.3,1.33203]
[1641073734189,0.2701,3754.0,3753.5,0.00284212]
[1641073734435,0.2701,3754.0,3753.4,0.00341054]
[1641073734638,8.35738601,3753.7,3753.6,0.0022737]
[1641073734838,8.35738601,3753.7,3753.1,0.00511581]
[1641073735036,8.35738601,3753.7,3752.8,1.33226]
[1641073735037,8.35738601,3753.7,3753.0,0.00568424]
[1641073735235,8.35738601,3753.7,3752.9,0.00625266]
[1641073735641,9.02354601,3753.7,3752.9,0.00625266]
[1641073736039,9.02354601,3753.7,3752.9,0.60625266]
[1641073736443,9.02354601,3753.7,3753.0,0.00568424]
[1641073736641,0.2701,3753.5,3752.9,0.51654218]
[1641073736841,0.2701,3753.2,3752.9,0.51654218]
[1641073737044,0.2701,3753.0,3752.9,0.146711]
[1641073737247,0.2701,3753.0,3752.8,1.33226]
[1641073737644,0.2701,3753.0,3752.5,2.45788754]
[1641073737845,0.2701,3753.0,3752.1,12.7715]
[1641073737846,0.2701,3753.0,3752.3,2.49835911]
[1641073738102,0.2701,3753.0,3752.6,0.00227369]
[1641073739000,0.2701,3753.0,3752.2,1.30454738]
[1641073739202,0.2701,3753.0,3752.3,2.42653003]
[1641073739403,0.2701,3753.0,3752.3,3.39673899]
[1641073739608,0.2701,3753.0,3752.4,1.00341054]
[1641073739806,0.2701,3753.0,3752.5,2.46168369]
[1641073740004,0.2701,3753.0,3752.5,2.7645258]
[1641073740507,0.00113685,3753.2,3752.6,1.683]
[1641073740508,0.2701,3752.9,3752.6,1.683]
[1641073740706,0.00113685,3753.2,3752.8,1.3320022]
[1641073740910,0.00113685,3753.2,3752.9,0.383]
[1641073741108,0.00113685,3753.2,3752.9,0.64350764]
[1641073741508,0.00113685,3753.2,3753.0,0.666]
[1641073741708,0.00113685,3753.2,3753.1,0.383]
[1641073741941,0.00113685,3753.2,3753.1,0.683]
[1641073742546,0.00113685,3753.2,3753.1,3.11175846]
[1641073742745,0.00113685,3753.2,3753.1,3.08670378]
[1641073742947,0.00113685,3753.2,3753.1,3.06197047]
[1641073743146,0.00113685,3753.2,3753.1,8.51197047]
[1641073744149,0.00113685,3753.2,3753.1,13.11197047]
[1641073744747,0.00113685,3753.2,3753.1,8.51197047]
[1641073745147,0.00113685,3753.2,3753.1,7.51197047]
[1641073745792,1.22841091,3754.3,3753.2,7.95]
[1641073745991,1.22841091,3754.3,3753.8,0.66601]
[1641073746196,0.00568424,3754.2,3753.6,1.33202]
[1641073746595,0.00511581,3754.1,3753.6,1.33202]
[1641073746997,0.00454739,3754.0,3753.6,1.33202]
[1641073747196,0.00454739,3754.0,3753.6,1.998036]
[1641073747398,0.00397896,3753.9,3753.8,0.66605]
[1641073747596,0.00397896,3753.9,3753.8,1.26605]
[1641073753082,0.00397896,3753.9,3753.8,0.96605]
[1641073754889,0.00397896,3753.9,3753.8,13.3062563]
[1641073755097,0.00397896,3753.9,3753.8,14.9892563]
[1641073755489,0.00397896,3753.9,3753.8,12.24905]
[1641073755893,0.00397896,3753.9,3753.8,13.1396785]
[1641073756695,91.0,3755.3,3754.5,0.66584]
[1641073756934,74.0,3755.2,3754.5,0.383]
[1641073757132,74.00738951,3755.2,3754.5,0.983]
[1641073757535,1.07075217,3755.1,3754.5,0.983]
[1641073757732,13.07075217,3755.1,3754.5,0.983]
[1641073757931,0.00625266,3755.0,3754.5,0.983]
[1641073758131,0.00625266,3755.0,3754.8,0.66588]
[1641073758132,14.00625266,3755.0,3754.8,0.66588]
[1641073758437,0.00568424,3754.9,3754.8,0.96588]
[1641073758636,0.00568424,3754.9,3754.8,0.66588]
[1641073763188,0.00568424,3754.9,3754.8,0.96588]
[1641073763590,11.00568424,3754.9,3754.8,0.96588]
[1641073763791,0.00568424,3754.9,3754.8,0.96588]
[1641073763990,19.00568424,3754.9,3754.8,0.96588]
[1641073764652,24.00568424,3754.9,3754.8,0.96588]
[1641073764954,0.00568424,3754.9,3754.8,0.96588]
[1641073765253,17.00568424,3754.9,3754.8,0.96588]
[1641073765451,0.00568424,3754.9,3754.8,0.96588]
[1641073767453,12.0,3755.0,3754.8,0.96588]
[1641073767656,11.95568424,3755.0,3754.8,0.96588]
[1641073767853,11.95568424,3755.2,3754.8,3.66588]
[1641073768082,10.0,3754.9,3754.8,3.66588]
[1641073768288,37.0,3755.1,3754.8,4.3317286]
[1641073768693,16.0,3754.9,3754.8,4.3317286]
[1641073768890,19.0,3755.0,3754.8,4.3317286]
[1641073769090,29.0,3754.9,3754.8,4.3317286]
[1641073769290,29.0,3754.9,3754.8,5.38067807]
[1641073769593,0.00284212,3755.4,3755.0,0.66582]
[1641073769990,0.00227369,3755.3,3755.0,0.66582]
[1641073770390,42.0,3755.6,3755.0,0.66582]
[1641073770593,18.0,3755.4,3754.9,2.1305857]
[1641073770991,0.00227369,3755.3,3754.9,2.1305857]
[1641073771394,18.00284212,3755.4,3755.0,0.6658]
[1641073771593,16.0,3755.3,3755.1,0.7989379]
[1641073771835,15.95227369,3755.3,3755.1,0.7989379]
[1641073772248,17.0,3755.2,3755.1,0.7989379]
[1641073772645,26.0,3755.2,3755.1,0.7989379]
[1641073773245,26.0,3755.2,3755.1,1.0989379]
[1641073773745,26.0,3755.2,3755.1,1.3989379]
[1641073775885,26.0,3755.2,3755.1,0.13316]
[1641073776090,26.0,3755.2,3755.0,0.6658]
[1641073776485,12.00113685,3755.1,3755.0,0.6658]
[1641073776886,12.00511581,3755.1,3755.0,0.6658]
[1641073777186,10.00511581,3755.1,3755.0,0.6658]
[1641073778085,10.00511581,3755.1,3755.0,0.9658]
[1641073778485,12.00511581,3755.1,3755.0,0.9658]
[1641073778688,12.00511581,3755.1,3755.0,0.3]
[1641073778887,0.00511581,3755.1,3755.0,0.3]
[1641073779085,0.00511581,3755.1,3754.9,0.00364393]
[1641073781752,0.62096581,3755.4,3754.9,0.00364393]
[1641073781952,0.62096581,3755.4,3755.0,0.00454739]
[1641073782757,1.03691536,3755.3,3755.0,0.00454739]
[1641073782954,24.0,3755.2,3755.0,0.00454739]
[1641073783216,24.0,3755.1,3755.0,0.00454739]
[1641073787752,27.54401599,3755.1,3755.0,0.00454739]
[1641073788347,24.0,3755.1,3755.0,0.00454739]
[1641073789753,27.54332463,3755.1,3755.0,0.00454739]
[1641073790991,24.0,3755.1,3755.0,0.00454739]
[1641073792488,26.0,3755.1,3755.0,0.00454739]
[1641073793991,4.61599,3754.9,3754.8,2.65819132]
[1641073794339,4.61599,3754.9,3754.8,2.65932816]
[1641073794543,46.61599,3754.9,3754.8,2.65932816]
[1641073807303,47.31143663,3754.9,3754.8,2.50932816]
[1641073807706,36.31143663,3754.9,3754.8,2.50932816]
[1641073807908,24.31143663,3754.9,3754.8,2.50932816]
[1641073813189,20.36143663,3754.9,3754.8,2.50932816]
[1641073820065,20.36143663,3754.9,3753.8,0.06029139]
[1641073820066,9.6,3754.8,3753.8,0.06029139]
[1641073820266,0.66617,3754.3,3753.5,1.78759533]
[1641073820466,7.9,3754.2,3753.9,0.00511582]
[1641073820896,25.33246,3754.1,3753.9,0.00511582]
[1641073821304,37.77836443,3754.0,3753.9,0.00511582]
[1641073821507,0.66636,3753.6,3752.3,3.56721911]
[1641073822001,0.66636,3753.6,3752.4,0.00852635]
[1641073822204,0.6664,3753.0,3752.4,0.00852635]
[1641073822603,1.17902475,3752.7,3752.4,0.00852635]
[1641073822803,1.84543955,3752.7,3752.0,0.01080004]
[1641073823202,1.84543955,3752.7,3751.8,0.01193689]
[1641073823407,2.69144348,3752.6,3751.8,0.01193689]
[1641073823609,0.66656,3752.3,3751.8,0.01193689]
[1641073823809,0.66656,3752.3,3750.9,7.478456]
[1641073824007,0.0022737,3752.2,3750.9,7.478456]
[1641073824210,13.0022737,3752.2,3751.0,0.00454739]
[1641073824472,1.03697861,3752.1,3751.0,0.00454739]
[1641073824670,2.66657,3751.7,3751.0,0.00454739]
[1641073824868,3.95,3751.3,3750.1,4.1939]
[1641073825068,3.95,3751.3,3750.1,0.272]
[1641073825272,0.00341054,3751.2,3750.2,0.00227369]
[1641073825471,46.00341054,3751.2,3750.2,0.00227369]
[1641073825671,0.00284212,3751.1,3750.2,0.00227369]
[1641073826072,0.00227369,3751.0,3750.2,0.00227369]
[1641073826372,1.04083342,3751.1,3750.2,0.00227369]
[1641073826373,0.00170527,3750.9,3750.2,0.00227369]
[1641073826572,0.66668,3750.8,3750.2,0.00227369]
[1641073826774,0.00113685,3750.8,3750.2,0.00227369]
[1641073827673,1.24837946,3750.5,3750.2,2.70227369]
[1641073828103,1.24837946,3750.5,3750.3,0.00170527]
[1641073829106,1.24837946,3750.5,3750.1,0.00284212]
[1641073829712,1.91513946,3750.5,3750.1,0.00284212]
[1641073830108,0.66676,3750.5,3750.1,0.00284212]
[1641073831107,14.0,3750.7,3750.1,0.00284212]
[1641073831108,14.66671,3750.7,3750.1,0.00284212]
[1641073831308,1.27015649,3750.6,3750.1,0.00284212]
[1641073831951,1.27015649,3750.6,3750.1,0.00461141]
[1641073833258,0.66674,3750.5,3750.1,0.00461141]
[1641073834261,0.00113685,3750.8,3750.1,0.00461141]
[1641073834262,60.0,3750.6,3750.1,0.00461141]
[1641073834661,52.0,3750.5,3750.1,0.00461141]
[1641073835060,0.00113685,3750.8,3750.1,0.00461141]
[1641073835261,0.00113685,3750.8,3750.7,1.22300609]
[1641073835702,0.00113685,3750.8,3750.7,1.82300609]
[1641073836506,0.00113685,3750.8,3750.7,2.20600609]
[1641073836707,50.0,3750.9,3750.8,5.65]
[1641073836905,50.0,3750.9,3750.8,6.033]
[1641073837107,50.0,3750.9,3750.8,7.033]
[1641073837806,50.0,3750.9,3750.8,1.383]
[1641073838306,50.0,3750.9,3750.8,3.933]
[1641073838705,50.0,3750.9,3750.8,1.383]
[1641073840667,35.0,3750.9,3750.8,1.383]
[1641073840868,35.0,3750.9,3750.8,3.83039425]
[1641073841067,35.0,3750.9,3750.8,7.13039425]
[1641073841469,35.0,3750.9,3750.8,3.83039425]
[1641073842472,34.95,3750.9,3750.8,3.83216321]
[1641073842871,34.95,3750.9,3750.8,1.38476896]
[1641073843099,34.95,3750.9,3750.8,3.7182501]
[1641073843501,34.95,3750.9,3750.8,1.38476896]
[1641073843703,34.95,3750.9,3750.8,3.73469007]
[1641073843908,34.95,3750.9,3750.8,1.38476896]
[1641073844108,34.95,3750.9,3750.8,3.72384117]
[1641073844912,34.95,3750.9,3750.8,1.38476896]
[1641073845110,34.95,3750.9,3750.8,3.98476896]
[1641073845314,34.95,3750.9,3750.8,6.32490395]
[1641073845511,34.95,3750.9,3750.8,3.98476896]
[1641073845714,34.95,3750.9,3750.8,6.31670706]
[1641073846010,34.95,3750.9,3750.8,6.32273062]
[1641073846210,34.95,3750.9,3750.8,3.98476896]
[1641073846412,34.95,3750.9,3750.8,6.31971395]
[1641073846611,34.95,3750.9,3750.8,3.98476896]
[1641073846859,34.95,3750.9,3750.8,6.31812404]
[1641073847057,34.95,3750.9,3750.8,3.98476896]
[1641073852200,34.95,3750.9,3750.8,6.31807329]
[1641073853001,34.95,3750.9,3750.8,2.98476896]
[1641073853304,34.95,3750.9,3750.8,3.98476896]
[1641073854348,34.95,3750.9,3750.8,4.58476896]
[1641073854960,34.95,3750.9,3750.8,6.90804505]
[1641073855258,34.95,3750.9,3750.8,0.98476896]
[1641073855458,34.95,3750.9,3750.8,1.98476896]
[1641073856858,34.9,3750.9,3750.8,1.98476896]
[1641073859704,34.9,3750.9,3750.8,0.38476896]
[1641073860104,34.9,3750.9,3750.8,0.33476896]
[1641073860507,34.9,3750.9,3750.8,2.69541496]
[1641073861110,34.9,3750.9,3750.8,4.29541496]
[1641073862256,34.9,3750.9,3750.8,0.33476896]
[1641073863462,34.9,3750.9,3750.8,0.63476896]
[1641073867613,34.9,3750.9,3750.8,1.63476896]
[1641073867912,34.9,3750.9,3750.8,3.97904771]
[1641073868512,34.9,3750.9,3750.8,1.63476896]
[1641073868715,34.9,3750.9,3750.8,3.95995997]
[1641073868916,34.9,3750.9,3750.8,3.96300992]
[1641073869113,34.9,3750.9,3750.8,3.9611914]
[1641073869556,34.9,3750.9,3750.8,3.9731572]
[1641073869764,34.9,3750.9,3750.8,1.63476896]
[1641073870157,34.9,3750.9,3750.8,3.96782674]
[1641073870557,34.9,3750.9,3750.8,1.63476896]
[1641073870758,34.9,3750.9,3750.8,3.97243163]
[1641073871157,34.9,3750.9,3750.8,3.9877296]
[1641073871360,34.9,3750.9,3750.8,1.63476896]
[1641073872958,34.9,3750.9,3750.8,3.97222438]
[1641073873205,34.9,3750.9,3750.8,1.63476896]
[1641073873406,34.9,3750.9,3750.7,1.33291]
[1641073873606,34.9,3750.9,3750.2,0.61510508]
[1641073873806,68.0,3750.8,3750.3,0.3]
[1641073874012,68.0,3750.8,3750.3,0.00284212]
[1641073874207,70.0,3750.7,3750.3,0.00284212]
[1641073874411,0.6667,3750.6,3750.3,0.00284212]
[1641073874910,76.6667,3750.6,3750.3,0.00284212]
[1641073875111,76.6667,3750.6,3750.2,0.00341054]
[1641073875310,58.0,3750.5,3750.1,0.00397897]
[1641073875711,0.66672,3750.4,3750.1,0.00397897]
[1641073876516,0.66672,3750.4,3750.0,1.28473397]
[1641073876713,0.00113685,3750.3,3750.0,1.28473397]
[1641073880058,0.00113685,3750.3,3750.0,0.780755]
[1641073880255,0.00113685,3750.3,3750.0,0.114055]
[1641073881502,0.00113685,3750.3,3750.0,0.780755]
[1641073881903,0.00113685,3750.3,3750.0,1.080755]
[1641073882306,0.00113685,3750.3,3750.1,0.3]
[1641073884553,0.00113685,3750.3,3750.0,0.780755]
[1641073884752,0.00113685,3750.3,3750.0,1.4474204]
[1641073886356,0.00113685,3750.3,3750.0,1.3974204]
[1641073887158,0.00113685,3750.3,3750.1,0.43334]
[1641073887358,0.00113685,3750.3,3750.2,0.6666348]
[1641073887558,0.00113685,3750.3,3750.2,0.9666348]
[1641073888201,0.00113685,3750.3,3750.2,0.6666348]
[1641073894057,0.25422028,3750.2,3750.0,0.19232366]
[1641073894255,0.20422028,3750.2,3750.0,0.19232366]
[1641073894860,1.19782028,3750.2,3750.0,0.19232366]
[1641073895456,4.63063592,3750.1,3750.0,0.19232366]
[1641073895708,5.96440592,3750.1,3750.0,0.19232366]
[1641073896308,8.80694003,3750.1,3750.0,0.19232366]
[1641073898214,2.51440592,3750.1,3750.0,0.19232366]
[1641073898713,1.18063592,3750.1,3750.0,0.19232366]
[1641073899354,88.18063592,3750.1,3750.0,0.19232366]
[1641073899558,90.87849472,3750.1,3750.0,0.19232366]
[1641073899766,91.0315588,3750.1,3750.0,2.366e-05]
[1641073900559,91.0885588,3750.1,3750.0,2.366e-05]
[1641073900761,96.10740621,3750.1,3750.0,2.366e-05]
[1641073901759,94.81230209,3750.1,3750.0,2.366e-05]
[1641073901959,9.6,3750.0,3748.6,1.20271536]
[1641073902160,9.6,3750.0,3748.4,4.9016112]
[1641073902161,0.66696,3749.2,3748.4,4.9016112]
[1641073902366,0.66696,3749.2,3748.7,0.00795793]
[1641073902562,0.66696,3749.2,3748.7,0.30795793]
[1641073902962,0.66696,3749.2,3748.8,0.0073895]
[1641073903207,3.2,3749.1,3748.3,0.2241495]
[1641073903406,4.59171897,3749.1,3748.4,0.0022737]
[1641073903611,0.00113685,3749.0,3748.4,0.0022737]
[1641073904007,0.69761869,3749.0,3748.4,0.0022737]
[1641073905215,0.69761869,3749.0,3748.4,0.8025804]
[1641073905413,0.69761869,3749.0,3748.4,0.1356637]
[1641073905712,0.69761869,3749.0,3748.5,0.00170527]
[1641073906413,0.69761869,3749.0,3748.3,0.00284212]
[1641073906712,0.69761869,3749.0,3748.6,0.6668891]
[1641073906954,0.69761869,3749.0,3748.6,0.8002691]
[1641073907157,0.69761869,3749.0,3748.7,1.32691377]
[1641073908560,0.69761869,3749.0,3748.7,1.46029377]
[1641073908758,0.69761869,3749.0,3748.8,0.6668641]
[1641073915160,0.69761869,3749.0,3748.8,0.66843813]
[1641073915762,0.69761869,3749.0,3748.8,0.96843813]
[1641073916763,0.00113685,3749.0,3748.8,0.96843813]
[1641073916962,0.00113685,3749.0,3748.9,7.76239667]
[1641073920625,0.00113685,3749.0,3748.9,8.06239667]
[1641073920820,0.00113685,3749.0,3748.9,9.06239667]
[1641073921421,0.00113685,3749.0,3748.9,1.31239667]
[1641073921620,0.00113685,3749.0,3748.9,0.31239667]
[1641073921854,0.00113685,3749.0,3748.9,1.01239667]
[1641073922255,0.00113685,3749.0,3748.9,4.91239667]
[1641073922456,0.00113685,3749.0,3748.9,3.91239667]
[1641073922655,0.00113685,3749.0,3748.9,4.91239667]
[1641073924259,0.00113685,3749.0,3748.9,7.56239667]
[1641073924461,0.00113685,3749.0,3748.9,4.91239667]
[1641073929465,0.00113685,3749.0,3748.9,3.65]
[1641073932068,0.00113685,3749.0,3748.9,10.6]
[1641073933105,0.00113685,3749.0,3748.9,26.12]
[1641073933704,0.06075899,3749.3,3748.9,19.17]
[1641073933905,0.06075899,3749.3,3749.1,2.00017]
[1641073934109,0.00227369,3749.2,3749.1,2.30017]
[1641073934304,0.00227369,3749.2,3749.1,0.96672]
[1641073935107,0.00227369,3749.2,3749.1,4.56672]
[1641073935309,0.00227369,3749.2,3749.1,4.94972]
[1641073935507,0.00227369,3749.2,3749.1,5.94972]
[1641073936309,0.00227369,3749.2,3749.1,5.9012939]
[1641073939366,0.00227369,3749.2,3749.1,9.4012939]
[1641073939769,0.00227369,3749.2,3749.1,5.9012939]
[1641073942120,0.00227369,3749.2,3749.1,2.3012939]
[1641073942921,0.00227369,3749.2,3749.1,5.8512939]
[1641073943521,0.00227369,3749.2,3749.1,2.3012939]
[1641073943925,0.00227369,3749.2,3749.1,6.5012939]
[1641073944960,0.00227369,3749.2,3749.1,2.3012939]
[1641073945963,0.00227369,3749.2,3749.1,4.9512939]
[1641073949209,0.00227369,3749.2,3749.1,1.0512939]
[1641073949608,0.00227369,3749.2,3749.1,0.3845739]
[1641073950410,0.00227369,3749.2,3749.1,0.6845739]
[1641073950813,0.00227369,3749.2,3749.1,5.5345739]
[1641073951213,0.00227369,3749.2,3749.1,6.5345739]
[1641073954468,0.00227369,3749.2,3749.1,1.6845739]
[1641073954868,0.00227369,3749.2,3749.1,4.5845739]
[1641073955900,0.00227369,3749.2,3749.1,1.6845739]
[1641073957902,0.00227369,3749.2,3749.1,5.3845739]
[1641073958804,0.00227369,3749.2,3749.1,1.6345739]
[1641073964118,0.06075872,3749.5,3749.1,1.6345739]
[1641073964315,0.06075872,3749.5,3749.4,1.33302464]
[1641073964922,0.06075872,3749.5,3749.4,2.33302464]
[1641073965119,60.06075872,3749.5,3749.4,2.33302464]
[1641073965320,44.0,3749.5,3749.4,2.33302464]
[1641073965720,0.6962741,3750.0,3749.4,1.0]
[1641073965920,80.0,3749.5,3749.4,1.26671]
[1641073966323,0.06075832,3749.8,3749.4,2.6002109]
[1641073966624,66.0,3749.5,3749.4,1.6002109]
[1641073966867,0.00511581,3749.7,3749.4,1.6002109]
[1641073967069,0.00397896,3749.5,3749.4,1.6002109]
[1641073967272,0.00454739,3749.6,3749.4,1.6002109]
[1641073967470,0.00397896,3749.5,3749.4,1.6002109]
[1641073967667,0.00511581,3749.5,3749.4,1.6002109]
[1641073967867,0.00397896,3749.5,3749.4,1.6002109]
[1641073969474,80.00397896,3749.5,3749.4,1.6002109]
[1641073969876,0.00397896,3749.5,3749.4,1.6002109]
[1641073970079,69.00397896,3749.5,3749.4,1.6002109]
[1641073970710,0.00397896,3749.5,3749.4,1.6002109]
[1641073970908,74.00397896,3749.5,3749.4,1.6002109]
[1641073971307,0.00397896,3749.5,3749.4,1.6002109]
[1641073971507,80.00397896,3749.5,3749.4,1.6002109]
[1641073971706,0.00397896,3749.5,3749.4,1.6002109]
[1641073972108,84.00397896,3749.5,3749.4,1.6002109]
[1641073972308,0.00397896,3749.5,3749.4,1.6002109]
[1641073974358,72.00397896,3749.5,3749.4,1.6002109]
[1641073974862,0.00397896,3749.5,3749.4,1.6002109]
[1641073975062,77.00397896,3749.5,3749.4,1.6002109]
[1641073975265,0.00397896,3749.5,3749.4,1.6002109]
[1641073978107,67.00397896,3749.5,3749.4,1.6002109]
[1641073978510,0.00397896,3749.5,3749.4,1.6002109]
[1641073978710,45.00397896,3749.5,3749.4,1.6002109]
[1641073979110,0.00397896,3749.5,3749.4,1.6002109]
[1641073979514,55.00397896,3749.5,3749.4,1.6002109]
[1641073979714,0.00397896,3749.5,3749.4,1.6002109]
[1641073981017,0.00397896,3749.5,3749.3,3.4003011]
[1641073981018,0.00397896,3749.5,3749.3,0.13335]
[1641073981216,0.00397896,3749.5,3748.9,0.26675]
[1641073981421,0.00341054,3749.4,3748.7,3.6016112]
[1641073981616,9.2,3749.3,3748.7,3.6016112]
[1641073981863,3.98661159,3749.2,3748.1,0.06075832]
[1641073982060,60.98888528,3749.2,3748.1,0.06075832]
[1641073982258,0.00170527,3749.1,3748.2,0.00341054]
[1641073982464,0.66706,3748.7,3748.2,0.00341054]
[1641073983057,1.30335433,3748.4,3748.2,0.00341054]
[1641073983262,0.66706,3748.7,3748.2,0.00341054]
[1641073983660,0.66703,3748.9,3748.0,0.00454739]
[1641073984060,0.66703,3748.9,3747.9,0.00511581]
[1641073984260,1.96965269,3748.9,3747.9,0.00511581]
[1641073984469,1.96965269,3748.9,3748.1,1.97902192]
[1641073984665,0.00113685,3749.0,3748.4,0.6669765]
[1641073985066,0.00113685,3749.0,3748.7,1.0]
[1641073985469,0.00113685,3749.0,3748.7,1.6]
[1641073985926,0.00113685,3749.0,3748.8,0.66689]
[1641073986124,0.00113685,3749.0,3748.8,2.35912795]
[1641073986323,0.00113685,3749.0,3748.8,2.65912795]
[1641073986527,76.29510412,3749.5,3748.8,2.65912795]
[1641073986528,65.10921285,3749.5,3748.8,2.65912795]
[1641073986824,65.10921285,3749.5,3748.8,1.99223465]
[1641073987025,0.00227369,3749.4,3748.8,0.96689]
[1641073987427,0.00170527,3749.3,3748.8,0.96689]
[1641073987626,0.00170527,3749.3,3748.6,1.3337428]
[1641073987828,0.00113684,3749.2,3748.5,0.66862527]
[1641073988028,0.69759074,3749.2,3748.7,0.00170527]
[1641073988230,0.69759074,3749.2,3748.6,0.0022737]
[1641073988434,0.69759074,3749.2,3748.8,0.00113685]
[1641073988630,0.69759074,3749.2,3748.6,0.0022737]
[1641073988831,71.69759074,3749.2,3748.8,0.6669151]
[1641073989031,71.69759074,3749.2,3748.9,0.13338]
[1641073989231,47.0,3749.1,3748.9,0.13338]
[1641073989773,61.0,3749.0,3748.9,0.8002601]
[1641073990175,0.69759074,3749.2,3748.8,0.6]
[1641073990377,32.0,3749.0,3748.8,0.6]
[1641073990778,0.69759074,3749.2,3748.8,0.6]
[1641073990984,0.69759074,3749.2,3748.9,0.13338]
[1641073992182,72.69759074,3749.2,3748.9,0.13338]
[1641073992384,0.69759074,3749.2,3748.9,0.13338]
[1641073993416,0.69759074,3749.2,3748.9,0.80024]
[1641073994525,0.69759074,3749.2,3749.0,1.2335044]
[1641073994824,0.00113684,3749.2,3749.0,1.5335044]
[1641073995025,42.0,3749.1,3749.0,1.5335044]
[1641073995225,42.0,3749.1,3749.0,6.93119933]
[1641073995623,42.0,3749.1,3749.0,5.2832744]
[1641073997078,42.0,3749.1,3749.0,2.5832744]
[1641073997282,42.0,3749.1,3749.0,1.91649]
[1641073997685,42.0,3749.1,3749.0,1.24972]
[1641073997882,42.0,3749.1,3749.0,1.19972]
[1641074002934,42.0,3749.1,3749.0,1.14972]
[1641074007271,42.0,3749.1,3749.0,3.46204542]
[1641074007672,42.0,3749.1,3749.0,1.14972]
[1641074007874,42.0,3749.1,3749.0,3.46367758]
[1641074008131,42.0,3749.1,3749.0,2.14972]
[1641074010638,42.0,3749.1,3749.0,3.48315]
[1641074015923,42.0,3749.1,3749.0,1.98315]
[1641074017121,42.0,3749.1,3749.0,3.58315]
[1641074018724,42.0,3749.1,3749.0,2.98315]
[1641074018925,42.0,3749.1,3749.0,1.98315]
[1641074020165,42.0,3749.1,3749.0,3.58315]
[1641074027476,42.0,3749.1,3749.0,2.24972]
[1641074037880,42.0,3749.1,3749.0,6.19972]
[1641074038126,42.0,3749.1,3749.0,2.24972]
[1641074040131,42.0,3749.1,3749.0,1.64972]
[1641074040336,42.0,3749.1,3749.0,0.64972]
[1641074041534,42.0,3749.1,3749.0,1.24972]
[1641074041736,42.0,3749.1,3749.0,2.24972]
[1641074049367,42.0,3749.1,3749.0,2.243692]
[1641074055530,42.0,3749.1,3749.0,1.976972]